[Event "*** Titled Tuesday 3|2 Blitz"]
[Site "Chess.com"]
[Date "2015.10.06"]
[Round "5"]
[White "Goala"]
[Black "chess960now"]
[Result "1-0"]
[WhiteElo "2145"]
[BlackElo "1952"]
[TimeControl "180+2"]
[EndTime "18:02:56 PDT"]
[Termination "Goala won on time"]

1. d4 {[%clk 0:03:01.9]} 1... d5 {[%clk 0:03:00.1]} 2. c4 {[%clk 0:03:01]} 2...
c6 {[%clk 0:03:01]} 3. Nc3 {[%clk 0:03:02.4]} 3... Nf6 {[%clk 0:03:01.2]} 4. e3
{[%clk 0:03:03.9]} 4... e6 {[%clk 0:03:01.8]} 5. Qc2 {[%clk 0:03:04.4]} 5...
Nbd7 {[%clk 0:03:02.9]} 6. Nf3 {[%clk 0:03:05.9]} 6... Bd6 {[%clk 0:03:03.6]} 7.
b3 {[%clk 0:03:07.3]} 7... O-O {[%clk 0:03:03.8]} 8. Bb2 {[%clk 0:03:08.9]} 8...
b6 {[%clk 0:03:05.1]} 9. Bd3 {[%clk 0:03:10.3]} 9... Bb7 {[%clk 0:03:04.9]} 10.
O-O {[%clk 0:03:11.8]} 10... c5 {[%clk 0:03:02.6]} 11. cxd5 {[%clk 0:03:11.9]}
11... exd5 {[%clk 0:03:01.5]} 12. Qe2 {[%clk 0:03:12.3]} 12... Rc8 {[%clk
0:02:58.4]} 13. Rac1 {[%clk 0:03:13.9]} 13... Re8 {[%clk 0:02:58.1]} 14. Rfd1
{[%clk 0:03:15]} 14... Bb8 {[%clk 0:02:48.7]} 15. Bf5 {[%clk 0:03:01.8]} 15...
h6 {[%clk 0:02:41]} 16. Na4 {[%clk 0:02:53.6]} 16... Bc6 {[%clk 0:02:30.8]} 17.
dxc5 {[%clk 0:02:32.4]} 17... Bxa4 {[%clk 0:02:30.4]} 18. bxa4 {[%clk
0:02:34.3]} 18... Rxc5 {[%clk 0:02:18.7]} 19. Bd4 {[%clk 0:02:22.7]} 19... Rxc1
{[%clk 0:02:13]} 20. Rxc1 {[%clk 0:02:24.6]} 20... Ne4 {[%clk 0:02:07.4]} 21.
Qb2 {[%clk 0:01:54.5]} 21... f6 {[%clk 0:02:00.2]} 22. Qb5 {[%clk 0:01:34.4]}
22... Ndc5 {[%clk 0:01:53.7]} 23. a5 {[%clk 0:01:30]} 23... Nd6 {[%clk
0:01:15.9]} 24. Qb1 {[%clk 0:01:24.8]} 24... Nxf5 {[%clk 0:01:14.8]} 25. Qxf5
{[%clk 0:01:26.7]} 25... Ne4 {[%clk 0:01:09.8]} 26. axb6 {[%clk 0:01:22.4]}
26... axb6 {[%clk 0:01:10.6]} 27. h3 {[%clk 0:01:15.8]} 27... Qd6 {[%clk
0:01:09.9]} 28. Rb1 {[%clk 0:01:07.2]} 28... Bc7 {[%clk 0:00:53.3]} 29. Rb5
{[%clk 0:01:02.5]} 29... Rd8 {[%clk 0:00:45.9]} 30. a4 {[%clk 0:01:02.8]} 30...
Qa3 {[%clk 0:00:23.7]} 31. Bb2 {[%clk 0:00:55.1]} 31... Qxa4 {[%clk 0:00:20.1]}
32. Rxd5 {[%clk 0:00:55]} 32... Rxd5 {[%clk 0:00:10.6]} 33. Qxd5+ {[%clk
0:00:56.9]} 33... Kh8 {[%clk 0:00:10.7]} 34. Qd3 {[%clk 0:00:37.2]} 34... Qc6
{[%clk 0:00:06.1]} 35. Nd4 {[%clk 0:00:31.3]} 35... Qd5 {[%clk 0:00:03.8]} 36.
Qc2 {[%clk 0:00:29.8]} 36... Nc5 {[%clk 0:00:04.6]} 37. Qg6 {[%clk 0:00:26.1]}
37... Qd6 {[%clk 0:00:05.1]} 38. g3 {[%clk 0:00:22.6]} 38... Qd5 {[%clk
0:00:04.8]} 39. Nf5 {[%clk 0:00:18.7]} 39... Qd7 {[%clk 0:00:04.1]} 40. Nxh6
{[%clk 0:00:15.6]} 40... Qd1+ {[%clk 0:00:02.4]} 41. Kh2 {[%clk 0:00:14.1]} 1-0

[Event "*** Titled Tuesday 3|2 Blitz"]
[Site "Chess.com"]
[Date "2015.10.06"]
[Round "5"]
[White "Jahonas"]
[Black "UltimateCrusher2"]
[Result "1-0"]
[WhiteElo "2065"]
[BlackElo "1999"]
[TimeControl "180+2"]
[EndTime "18:05:31 PDT"]
[Termination "Jahonas won by resignation"]

1. d4 {[%clk 0:03:01.9]} 1... Nf6 {[%clk 0:03:00.5]} 2. Nf3 {[%clk 0:03:02.8]}
2... g6 {[%clk 0:02:59.6]} 3. c4 {[%clk 0:03:04.2]} 3... Bg7 {[%clk 0:02:59.6]}
4. Nc3 {[%clk 0:03:05.6]} 4... d5 {[%clk 0:03:00.8]} 5. cxd5 {[%clk 0:03:06.3]}
5... Nxd5 {[%clk 0:03:02.7]} 6. e3 {[%clk 0:03:07.7]} 6... O-O {[%clk
0:03:02.9]} 7. Be2 {[%clk 0:03:08.6]} 7... c5 {[%clk 0:03:03.9]} 8. O-O {[%clk
0:03:09.5]} 8... Nc6 {[%clk 0:03:02.6]} 9. Qb3 {[%clk 0:03:02.2]} 9... Nxc3
{[%clk 0:02:59.6]} 10. bxc3 {[%clk 0:03:02.7]} 10... Qc7 {[%clk 0:02:47.9]} 11.
Ba3 {[%clk 0:02:59.7]} 11... cxd4 {[%clk 0:02:07.8]} 12. cxd4 {[%clk 0:02:59.3]}
12... Be6 {[%clk 0:02:04.9]} 13. Qb2 {[%clk 0:02:43.2]} 13... Na5 {[%clk
0:01:51.5]} 14. Rfc1 {[%clk 0:02:41.4]} 14... Nc4 {[%clk 0:01:51]} 15. Bxc4
{[%clk 0:02:41.4]} 15... Bxc4 {[%clk 0:01:51.7]} 16. Qb4 {[%clk 0:02:41.7]}
16... b5 {[%clk 0:01:50.3]} 17. Qxe7 {[%clk 0:02:39.9]} 17... Qa5 {[%clk
0:01:35.6]} 18. Bb4 {[%clk 0:02:36]} 18... Qa4 {[%clk 0:01:33.7]} 19. Bc5 {[%clk
0:02:29.1]} 19... Rfe8 {[%clk 0:01:32.4]} 20. Qh4 {[%clk 0:02:21]} 20... Bxa2
{[%clk 0:01:16]} 21. Rd1 {[%clk 0:01:08.9]} 21... b4 {[%clk 0:01:08.8]} 22. Bxb4
{[%clk 0:01:08]} 22... Qxb4 {[%clk 0:01:08.8]} 23. Rxa2 {[%clk 0:01:08.1]} 23...
a5 {[%clk 0:01:08.8]} 24. Ng5 {[%clk 0:00:53.6]} 24... h6 {[%clk 0:01:08.2]} 25.
Ne4 {[%clk 0:00:49.8]} 25... a4 {[%clk 0:00:41.8]} 26. Nf6+ {[%clk 0:00:49.9]}
26... Bxf6 {[%clk 0:00:42.5]} 27. Qxf6 {[%clk 0:00:51.8]} 27... Qb3 {[%clk
0:00:39.4]} 28. Rda1 {[%clk 0:00:51]} 28... a3 {[%clk 0:00:41]} 29. h4 {[%clk
0:00:51.2]} 29... h5 {[%clk 0:00:41.5]} 30. Qd6 {[%clk 0:00:44.2]} 30... Red8
{[%clk 0:00:36.2]} 31. Qe7 {[%clk 0:00:40.6]} 31... Re8 {[%clk 0:00:26.1]} 32.
Qd6 {[%clk 0:00:29.2]} 32... Re6 {[%clk 0:00:21.2]} 33. Qc5 {[%clk 0:00:26.4]}
33... Rea6 {[%clk 0:00:21.9]} 34. d5 {[%clk 0:00:26.5]} 34... Ra5 {[%clk
0:00:21]} 35. Qc6 {[%clk 0:00:25.7]} 35... Qxd5 {[%clk 0:00:19.5]} 36. Qxd5
{[%clk 0:00:26.6]} 36... Rxd5 {[%clk 0:00:21]} 37. Rxa3 {[%clk 0:00:28]} 37...
Rxa3 {[%clk 0:00:22.1]} 38. Rxa3 {[%clk 0:00:29.3]} 38... Rd1+ {[%clk
0:00:23.9]} 39. Kh2 {[%clk 0:00:30.4]} 39... Rd2 {[%clk 0:00:25.8]} 40. Kg3
{[%clk 0:00:31.6]} 40... Kg7 {[%clk 0:00:27.2]} 41. Kf3 {[%clk 0:00:32.8]} 41...
Rb2 {[%clk 0:00:28.1]} 42. g3 {[%clk 0:00:32.9]} 42... Rc2 {[%clk 0:00:29.4]}
43. e4 {[%clk 0:00:33.9]} 43... Rb2 {[%clk 0:00:30.8]} 44. Re3 {[%clk 0:00:35]}
44... Rb7 {[%clk 0:00:31.4]} 45. e5 {[%clk 0:00:36.3]} 45... Ra7 {[%clk
0:00:33]} 46. g4 {[%clk 0:00:35.2]} 46... hxg4+ {[%clk 0:00:33.4]} 47. Kxg4
{[%clk 0:00:36.5]} 47... Ra4+ {[%clk 0:00:34.4]} 48. f4 {[%clk 0:00:37.5]} 48...
Ra7 {[%clk 0:00:34.7]} 49. h5 {[%clk 0:00:34]} 49... gxh5+ {[%clk 0:00:35.2]}
50. Kxh5 {[%clk 0:00:35.3]} 50... Ra1 {[%clk 0:00:36.9]} 51. Kg5 {[%clk
0:00:36.4]} 51... Rg1+ {[%clk 0:00:37.8]} 52. Kf5 {[%clk 0:00:37.7]} 52... Ra1
{[%clk 0:00:37.7]} 53. Rg3+ {[%clk 0:00:36.8]} 53... Kf8 {[%clk 0:00:38.1]} 54.
Rb3 {[%clk 0:00:31.3]} 54... Ra7 {[%clk 0:00:35.1]} 55. Kg5 {[%clk 0:00:29]}
55... Ke7 {[%clk 0:00:35.7]} 56. f5 {[%clk 0:00:29.7]} 56... Rc7 {[%clk
0:00:35]} 57. Rh3 {[%clk 0:00:28.6]} 57... Rc1 {[%clk 0:00:33.8]} 58. Rg3 {[%clk
0:00:26.3]} 58... Ra1 {[%clk 0:00:34]} 59. Rf3 {[%clk 0:00:18]} 59... Rg1+
{[%clk 0:00:34.1]} 60. Kf4 {[%clk 0:00:19.2]} 60... Re1 {[%clk 0:00:35.4]} 61.
Re3 {[%clk 0:00:15]} 61... Rf1+ {[%clk 0:00:35.3]} 62. Ke4 {[%clk 0:00:16.4]}
62... Rf2 {[%clk 0:00:35.3]} 63. Rd3 {[%clk 0:00:15.5]} 63... Re2+ {[%clk
0:00:36]} 64. Kd5 {[%clk 0:00:16.7]} 64... Rf2 {[%clk 0:00:35.9]} 65. f6+ {[%clk
0:00:16.6]} 65... Ke8 {[%clk 0:00:36.8]} 66. Rd4 {[%clk 0:00:17.8]} 66... Re2
{[%clk 0:00:37.1]} 67. Kd6 {[%clk 0:00:18.6]} 67... Re1 {[%clk 0:00:36.6]} 68.
Rd5 {[%clk 0:00:18.8]} 68... Re2 {[%clk 0:00:36.9]} 69. Rc5 {[%clk 0:00:12.7]}
69... Rd2+ {[%clk 0:00:38]} 70. Kc6 {[%clk 0:00:13.8]} 70... Rd8 {[%clk
0:00:36.4]} 71. Ra5 {[%clk 0:00:13.1]} 71... Rc8+ {[%clk 0:00:35.2]} 72. Kd6
{[%clk 0:00:14.2]} 72... Rd8+ {[%clk 0:00:36.6]} 73. Kc7 {[%clk 0:00:15.4]}
73... Rd7+ {[%clk 0:00:37.1]} 74. Kc6 {[%clk 0:00:15.9]} 74... Rd8 {[%clk
0:00:38.5]} 75. Ra7 {[%clk 0:00:17]} 75... Kf8 {[%clk 0:00:34.9]} 76. Rd7 {[%clk
0:00:17.1]} 76... Ra8 {[%clk 0:00:28.4]} 77. Kb7 {[%clk 0:00:17.2]} 77... Re8
{[%clk 0:00:28.6]} 78. Kc7 {[%clk 0:00:18.2]} 78... Rxe5 {[%clk 0:00:29.1]} 79.
Rd8+ {[%clk 0:00:18.8]} 79... Re8 {[%clk 0:00:30.2]} 80. Kd7 {[%clk 0:00:16.5]}
80... Rxd8+ {[%clk 0:00:26.6]} 81. Kxd8 {[%clk 0:00:18.4]} 81... Kg8 {[%clk
0:00:24.8]} 82. Ke7 {[%clk 0:00:19.5]} 82... Kh7 {[%clk 0:00:25.7]} 83. Kxf7
{[%clk 0:00:21.4]} 83... Kh8 {[%clk 0:00:26.9]} 84. Ke7 {[%clk 0:00:22.8]} 1-0

[Event "*** Titled Tuesday 3|2 Blitz"]
[Site "Chess.com"]
[Date "2015.10.06"]
[Round "5"]
[White "jcibarra"]
[Black "zmaj23"]
[Result "0-1"]
[WhiteElo "2484"]
[BlackElo "2328"]
[TimeControl "180+2"]
[EndTime "18:06:08 PDT"]
[Termination "zmaj23 won by checkmate"]

1. e4 {[%clk 0:03:01.9]} 1... c5 {[%clk 0:03:00.5]} 2. Nf3 {[%clk 0:03:02.7]}
2... d6 {[%clk 0:03:01.9]} 3. d4 {[%clk 0:03:04.1]} 3... cxd4 {[%clk 0:03:03.7]}
4. Nxd4 {[%clk 0:03:05.8]} 4... Nf6 {[%clk 0:03:03]} 5. Nc3 {[%clk 0:03:06.4]}
5... a6 {[%clk 0:03:04.6]} 6. Be3 {[%clk 0:03:07.8]} 6... e6 {[%clk 0:03:06.1]}
7. f3 {[%clk 0:03:07.6]} 7... b5 {[%clk 0:03:07.6]} 8. a4 {[%clk 0:03:08]} 8...
b4 {[%clk 0:03:07.6]} 9. Na2 {[%clk 0:03:09.4]} 9... d5 {[%clk 0:03:07.7]} 10.
e5 {[%clk 0:03:10.7]} 10... Nfd7 {[%clk 0:03:08.6]} 11. f4 {[%clk 0:03:12.2]}
11... Bb7 {[%clk 0:03:09.1]} 12. Qd2 {[%clk 0:03:13.2]} 12... Nc5 {[%clk
0:01:53.7]} 13. Bd3 {[%clk 0:03:12.7]} 13... Nxd3+ {[%clk 0:01:51.1]} 14. cxd3
{[%clk 0:03:12]} 14... a5 {[%clk 0:01:52.6]} 15. Nc1 {[%clk 0:03:11.3]} 15...
Nc6 {[%clk 0:01:52.1]} 16. Ncb3 {[%clk 0:03:09.3]} 16... Be7 {[%clk 0:01:51.3]}
17. O-O {[%clk 0:03:06.7]} 17... g5 {[%clk 0:01:50]} 18. f5 {[%clk 0:03:04.8]}
18... Nxe5 {[%clk 0:01:48.1]} 19. fxe6 {[%clk 0:03:02]} 19... O-O {[%clk
0:01:48.7]} 20. exf7+ {[%clk 0:02:53.7]} 20... Rxf7 {[%clk 0:01:47]} 21. Nf5
{[%clk 0:02:44.1]} 21... Bf8 {[%clk 0:01:27.1]} 22. Bxg5 {[%clk 0:02:39.2]}
22... Qb6+ {[%clk 0:01:26.7]} 23. Be3 {[%clk 0:02:32.2]} 23... Qg6 {[%clk
0:01:27.4]} 24. Nbd4 {[%clk 0:02:10.1]} 24... Rc8 {[%clk 0:01:17.7]} 25. Rf4
{[%clk 0:02:01.3]} 25... Ba6 {[%clk 0:01:14.3]} 26. Raf1 {[%clk 0:01:21.9]}
26... Bxd3 {[%clk 0:01:10.7]} 27. Nh4 {[%clk 0:01:09.4]} 27... Rxf4 {[%clk
0:01:11.5]} 28. Rxf4 {[%clk 0:01:08.5]} 28... Qh5 {[%clk 0:01:08.7]} 29. Nhf3
{[%clk 0:01:02]} 29... Be4 {[%clk 0:01:00.2]} 30. Nxe5 {[%clk 0:00:55.4]} 30...
Qxe5 {[%clk 0:01:02.1]} 31. Rg4+ {[%clk 0:00:52.9]} 31... Bg6 {[%clk 0:01:02]}
32. h3 {[%clk 0:00:50.7]} 32... Rc4 {[%clk 0:00:51.1]} 33. Nf3 {[%clk
0:00:48.6]} 33... Qe6 {[%clk 0:00:48.9]} 34. Bd4 {[%clk 0:00:48]} 34... Rc2
{[%clk 0:00:43.5]} 35. Qxc2 {[%clk 0:00:39.1]} 35... Qxg4 {[%clk 0:00:44.5]} 36.
Qc6 {[%clk 0:00:37.8]} 36... Qf5 {[%clk 0:00:41.6]} 37. Qc7 {[%clk 0:00:34.3]}
37... Bh5 {[%clk 0:00:38.5]} 38. Qg3+ {[%clk 0:00:34.2]} 38... Qg6 {[%clk
0:00:36.1]} 39. Qf4 {[%clk 0:00:31.4]} 39... Qe4 {[%clk 0:00:31]} 40. Qg5+
{[%clk 0:00:28.1]} 40... Bg6 {[%clk 0:00:31.3]} 41. Qf6 {[%clk 0:00:29.4]} 41...
Qb1+ {[%clk 0:00:25.5]} 42. Kh2 {[%clk 0:00:29.8]} 42... Qf5 {[%clk 0:00:27.4]}
43. Qh8+ {[%clk 0:00:29.7]} 43... Kf7 {[%clk 0:00:27.5]} 44. Ne5+ {[%clk
0:00:30.3]} 44... Ke6 {[%clk 0:00:23.8]} 45. Qg8+ {[%clk 0:00:28.5]} 45... Kd6
{[%clk 0:00:25]} 46. Nxg6 {[%clk 0:00:20.6]} 46... hxg6 {[%clk 0:00:26.9]} 47.
Kh1 {[%clk 0:00:16.5]} 47... Qf1+ {[%clk 0:00:25.2]} 48. Bg1 {[%clk 0:00:17.5]}
48... Qf6 {[%clk 0:00:16.6]} 49. Bh2+ {[%clk 0:00:15.3]} 49... Kc6 {[%clk
0:00:16.9]} 50. Bg1 {[%clk 0:00:15.2]} 50... g5 {[%clk 0:00:11.5]} 51. b3 {[%clk
0:00:15.7]} 51... Qf1 {[%clk 0:00:10.7]} 52. Qg6+ {[%clk 0:00:14.8]} 52... Bd6
{[%clk 0:00:10.3]} 53. Qc2+ {[%clk 0:00:10.3]} 53... Kd7 {[%clk 0:00:09.6]} 54.
Qh7+ {[%clk 0:00:10.6]} 54... Kc6 {[%clk 0:00:10.6]} 55. Qc2+ {[%clk 0:00:12.1]}
55... Kd7 {[%clk 0:00:11.5]} 56. h4 {[%clk 0:00:08.9]} 56... gxh4 {[%clk
0:00:06.8]} 57. Qh7+ {[%clk 0:00:10.2]} 57... Kc6 {[%clk 0:00:07.6]} 58. Qg8
{[%clk 0:00:09.9]} 58... Qf8 {[%clk 0:00:06]} 59. Qg4 {[%clk 0:00:08.6]} 59...
Qf4 {[%clk 0:00:06.2]} 60. Qc8+ {[%clk 0:00:08.2]} 60... Bc7 {[%clk 0:00:07.2]}
61. Qa6+ {[%clk 0:00:09.7]} 61... Kd7 {[%clk 0:00:07.6]} 62. Qb5+ {[%clk
0:00:10.6]} 62... Ke6 {[%clk 0:00:07.6]} 63. Qe8+ {[%clk 0:00:11.4]} 63... Kf5
{[%clk 0:00:06.9]} 64. Qh5+ {[%clk 0:00:10.7]} 64... Ke4 {[%clk 0:00:07.7]} 65.
Qe2+ {[%clk 0:00:11.6]} 65... Kf5 {[%clk 0:00:08.1]} 66. Qd3+ {[%clk 0:00:12.8]}
66... Qe4 {[%clk 0:00:08.1]} 67. Qh3+ {[%clk 0:00:13.3]} 67... Kg5 {[%clk
0:00:07.9]} 68. Qd7 {[%clk 0:00:11.2]} 68... Be5 {[%clk 0:00:09.1]} 69. Qe7+
{[%clk 0:00:11.6]} 69... Bf6 {[%clk 0:00:09.1]} 70. Qf8 {[%clk 0:00:08.6]} 70...
h3 {[%clk 0:00:09.3]} 71. Qg8+ {[%clk 0:00:09.8]} 71... Kf4 {[%clk 0:00:06.6]}
72. Bh2+ {[%clk 0:00:08.9]} 72... Ke3 {[%clk 0:00:07.1]} 73. Qg3+ {[%clk
0:00:09.9]} 73... Kd2 {[%clk 0:00:08.1]} 74. Qxh3 {[%clk 0:00:09.3]} 74... Qe1+
{[%clk 0:00:09.3]} 75. Bg1 {[%clk 0:00:10.5]} 75... Bd4 {[%clk 0:00:10.5]} 76.
Qh6+ {[%clk 0:00:11.2]} 76... Kc2 {[%clk 0:00:10]} 77. Qc6+ {[%clk 0:00:09.9]}
77... Kb2 {[%clk 0:00:11.2]} 78. Kh2 {[%clk 0:00:07.2]} 78... Qh4# {[%clk
0:00:12.2]} 0-1

[Event "*** Titled Tuesday 3|2 Blitz"]
[Site "Chess.com"]
[Date "2015.10.06"]
[Round "6"]
[White "chesstatour"]
[Black "wonderfultime"]
[Result "0-1"]
[WhiteElo "1887"]
[BlackElo "2631"]
[TimeControl "180+2"]
[EndTime "18:12:41 PDT"]
[Termination "wonderfultime won by resignation"]

1. d4 {[%clk 0:03:01.9]} 1... d5 {[%clk 0:03:00]} 2. c4 {[%clk 0:03:03.8]} 2...
c6 {[%clk 0:03:00.8]} 3. cxd5 {[%clk 0:03:03]} 3... cxd5 {[%clk 0:03:01.6]} 4.
Nc3 {[%clk 0:03:04.9]} 4... Nf6 {[%clk 0:03:02.7]} 5. f3 {[%clk 0:03:06.3]} 5...
e6 {[%clk 0:03:01.2]} 6. e4 {[%clk 0:03:07.3]} 6... dxe4 {[%clk 0:02:48.9]} 7.
fxe4 {[%clk 0:03:09.2]} 7... Bb4 {[%clk 0:02:49.9]} 8. e5 {[%clk 0:03:09.4]}
8... Nd5 {[%clk 0:02:46.5]} 9. Qf3 {[%clk 0:03:07.7]} 9... Nc6 {[%clk
0:02:46.1]} 10. Bb5 {[%clk 0:03:04.4]} 10... Qb6 {[%clk 0:02:44.5]} 11. Bxc6+
{[%clk 0:03:00.1]} 11... bxc6 {[%clk 0:02:44.8]} 12. Ne2 {[%clk 0:03:00.5]}
12... Ba6 {[%clk 0:02:45.9]} 13. O-O {[%clk 0:02:56.2]} 13... O-O {[%clk
0:02:47]} 14. Kh1 {[%clk 0:02:44.1]} 14... f6 {[%clk 0:02:35.7]} 15. Qh3 {[%clk
0:01:46.8]} 15... Bxc3 {[%clk 0:02:33.5]} 16. Qxe6+ {[%clk 0:00:58.4]} 16... Kh8
{[%clk 0:02:33.4]} 17. exf6 {[%clk 0:00:51.4]} 17... Nxf6 {[%clk 0:02:34.6]} 18.
b3 {[%clk 0:00:32.7]} 0-1

[Event "*** Titled Tuesday 3|2 Blitz"]
[Site "Chess.com"]
[Date "2015.10.06"]
[Round "6"]
[White "LyonBeast"]
[Black "GMVallejo"]
[Result "0-1"]
[WhiteElo "2708"]
[BlackElo "2664"]
[TimeControl "180+2"]
[EndTime "18:14:23 PDT"]
[Termination "GMVallejo won by resignation"]

1. Nf3 {[%clk 0:03:01.9]} 1... d5 {[%clk 0:02:59.7]} 2. g3 {[%clk 0:03:02]} 2...
c6 {[%clk 0:03:01]} 3. Bg2 {[%clk 0:03:00.8]} 3... Nf6 {[%clk 0:03:02.2]} 4. O-O
{[%clk 0:03:01.7]} 4... Bf5 {[%clk 0:03:02.9]} 5. c4 {[%clk 0:03:00.2]} 5... e6
{[%clk 0:03:04.3]} 6. cxd5 {[%clk 0:03:01.6]} 6... cxd5 {[%clk 0:03:04.3]} 7.
Qb3 {[%clk 0:03:01.7]} 7... Qb6 {[%clk 0:02:46.4]} 8. Qxb6 {[%clk 0:03:00.8]}
8... axb6 {[%clk 0:02:48.3]} 9. d3 {[%clk 0:03:02.2]} 9... Nc6 {[%clk
0:02:46.2]} 10. Bd2 {[%clk 0:03:03.3]} 10... Bc5 {[%clk 0:02:39.1]} 11. Nc3
{[%clk 0:03:04.2]} 11... h6 {[%clk 0:02:40.1]} 12. a3 {[%clk 0:03:04.9]} 12...
Ke7 {[%clk 0:02:37]} 13. b4 {[%clk 0:03:05.7]} 13... Bd6 {[%clk 0:02:37.4]} 14.
Nb5 {[%clk 0:03:06.8]} 14... Bg4 {[%clk 0:02:28.6]} 15. Rfc1 {[%clk 0:02:58.6]}
15... Bxf3 {[%clk 0:02:23.5]} 16. Bxf3 {[%clk 0:03:00.5]} 16... Rhc8 {[%clk
0:02:14.2]} 17. e3 {[%clk 0:03:00.3]} 17... Ne5 {[%clk 0:01:59.7]} 18. Be2
{[%clk 0:03:00.2]} 18... Rc6 {[%clk 0:01:58]} 19. Nxd6 {[%clk 0:02:58.6]} 19...
Kxd6 {[%clk 0:01:55.9]} 20. b5 {[%clk 0:02:58.2]} 20... Rxc1+ {[%clk 0:01:43.4]}
21. Rxc1 {[%clk 0:03:00.1]} 21... Kd7 {[%clk 0:01:37.6]} 22. f4 {[%clk
0:03:00.8]} 22... Ng6 {[%clk 0:01:36.3]} 23. Bb4 {[%clk 0:03:02]} 23... Ne8
{[%clk 0:01:33.2]} 24. e4 {[%clk 0:02:59.1]} 24... Nc7 {[%clk 0:01:31.4]} 25.
Bf3 {[%clk 0:02:42.3]} 25... d4 {[%clk 0:01:28.1]} 26. e5 {[%clk 0:02:35.5]}
26... Ra7 {[%clk 0:01:25.2]} 27. Rc4 {[%clk 0:02:20]} 27... Nxb5 {[%clk
0:01:22.8]} 28. Bd1 {[%clk 0:02:16.3]} 28... Ne7 {[%clk 0:01:08.7]} 29. a4
{[%clk 0:02:04.3]} 29... Nd5 {[%clk 0:01:09.5]} 30. Bd2 {[%clk 0:01:58.9]} 30...
Nbc3 {[%clk 0:01:04]} 31. Bb3 {[%clk 0:01:52.6]} 31... b5 {[%clk 0:01:01.6]} 32.
axb5 {[%clk 0:01:53.9]} 32... Ra3 {[%clk 0:01:00.4]} 33. Bc2 {[%clk 0:01:47.3]}
33... Ra1+ {[%clk 0:00:54.5]} 34. Kf2 {[%clk 0:01:48]} 34... Ra2 {[%clk
0:00:55.4]} 0-1

[Event "*** Titled Tuesday 3|2 Blitz"]
[Site "Chess.com"]
[Date "2015.10.06"]
[Round "6"]
[White "Noukii"]
[Black "jlandaw"]
[Result "1-0"]
[WhiteElo "2549"]
[BlackElo "2375"]
[TimeControl "180+2"]
[EndTime "18:15:32 PDT"]
[Termination "Noukii won by resignation"]

1. d4 {[%clk 0:03:01.9]} 1... Nf6 {[%clk 0:02:58.6]} 2. c4 {[%clk 0:03:03]} 2...
e6 {[%clk 0:02:59.6]} 3. Nc3 {[%clk 0:03:03.9]} 3... Bb4 {[%clk 0:02:59.7]} 4.
Nf3 {[%clk 0:03:05.6]} 4... b6 {[%clk 0:02:59.9]} 5. e3 {[%clk 0:03:06.4]} 5...
Bb7 {[%clk 0:03:00.6]} 6. Bd3 {[%clk 0:03:07.6]} 6... Ne4 {[%clk 0:02:59.9]} 7.
O-O {[%clk 0:02:59.2]} 7... Nxc3 {[%clk 0:02:49.2]} 8. bxc3 {[%clk 0:03:01.1]}
8... Be7 {[%clk 0:02:48.4]} 9. e4 {[%clk 0:02:53.5]} 9... d6 {[%clk 0:02:45.9]}
10. Nd2 {[%clk 0:02:48.4]} 10... e5 {[%clk 0:02:32.5]} 11. f4 {[%clk 0:02:43.7]}
11... exf4 {[%clk 0:02:23.2]} 12. Rxf4 {[%clk 0:02:43]} 12... Bg5 {[%clk
0:02:24.4]} 13. Rf3 {[%clk 0:02:34.8]} 13... Nd7 {[%clk 0:02:17.4]} 14. Rg3
{[%clk 0:02:34.5]} 14... Qf6 {[%clk 0:01:37.3]} 15. Qg4 {[%clk 0:02:17.8]} 15...
h6 {[%clk 0:01:37.2]} 16. Nf3 {[%clk 0:02:14.9]} 16... Bxc1 {[%clk 0:01:35.8]}
17. Rxc1 {[%clk 0:02:16.8]} 17... g6 {[%clk 0:01:27.8]} 18. e5 {[%clk
0:01:34.2]} 18... dxe5 {[%clk 0:01:26.2]} 19. Re1 {[%clk 0:01:34.7]} 19... O-O-O
{[%clk 0:01:10.1]} 20. Nxe5 {[%clk 0:01:34.7]} 20... h5 {[%clk 0:00:39.6]} 21.
Qh3 {[%clk 0:01:29.1]} 21... g5 {[%clk 0:00:39.7]} 22. Rf1 {[%clk 0:01:02.5]}
22... g4 {[%clk 0:00:27.8]} 23. Rxf6 {[%clk 0:00:59.3]} 23... gxh3 {[%clk
0:00:29.3]} 24. Nxd7 {[%clk 0:01:00.8]} 24... Rxd7 {[%clk 0:00:26.8]} 25. Bf5
{[%clk 0:01:01.5]} 25... Bxg2 {[%clk 0:00:20.4]} 26. Rxf7 {[%clk 0:01:01.8]}
26... Bc6 {[%clk 0:00:22.1]} 27. Rgg7 {[%clk 0:01:01.4]} 27... Rd8 {[%clk
0:00:22]} 28. d5 {[%clk 0:01:00.8]} 28... Ba4 {[%clk 0:00:23.1]} 29. Kf2 {[%clk
0:01:02]} 29... c5 {[%clk 0:00:24.4]} 30. d6 {[%clk 0:01:00.7]} 30... Bc6 {[%clk
0:00:25.3]} 31. Kg3 {[%clk 0:01:01.4]} 1-0

[Event "*** Titled Tuesday 3|2 Blitz"]
[Site "Chess.com"]
[Date "2015.10.06"]
[Round "6"]
[White "Zvonokchess"]
[Black "josiwales"]
[Result "1-0"]
[WhiteElo "2490"]
[BlackElo "2040"]
[TimeControl "180+2"]
[EndTime "18:15:47 PDT"]
[Termination "Zvonokchess won by resignation"]

1. Nf3 {[%clk 0:03:01.9]} 1... f5 {[%clk 0:03:00.3]} 2. d3 {[%clk 0:03:02]} 2...
Nf6 {[%clk 0:03:01.7]} 3. e4 {[%clk 0:03:01.1]} 3... g6 {[%clk 0:03:03.3]} 4.
exf5 {[%clk 0:02:59.5]} 4... gxf5 {[%clk 0:03:04.6]} 5. Nc3 {[%clk 0:02:59.3]}
5... Bg7 {[%clk 0:03:05.2]} 6. g3 {[%clk 0:02:43]} 6... O-O {[%clk 0:02:59.3]}
7. Bg2 {[%clk 0:02:43.8]} 7... d6 {[%clk 0:02:58.9]} 8. d4 {[%clk 0:02:40.3]}
8... Nc6 {[%clk 0:02:48.8]} 9. d5 {[%clk 0:02:40.5]} 9... Ne5 {[%clk 0:02:47.1]}
10. O-O {[%clk 0:02:37.5]} 10... Kh8 {[%clk 0:02:36.8]} 11. Nd4 {[%clk
0:02:31.1]} 11... Qe8 {[%clk 0:02:13.3]} 12. Ncb5 {[%clk 0:02:11]} 12... Qd8
{[%clk 0:02:11.6]} 13. Ne6 {[%clk 0:02:04.1]} 13... Bxe6 {[%clk 0:02:10.7]} 14.
dxe6 {[%clk 0:02:06]} 14... c6 {[%clk 0:02:11.9]} 15. Nd4 {[%clk 0:01:57.6]}
15... Ne4 {[%clk 0:01:51.3]} 16. Nxf5 {[%clk 0:01:52.2]} 16... Rxf5 {[%clk
0:01:48.6]} 17. Bxe4 {[%clk 0:01:41]} 17... Rf6 {[%clk 0:01:49.4]} 18. Bg5
{[%clk 0:01:39.8]} 18... Rxe6 {[%clk 0:01:22.3]} 19. Bf5 {[%clk 0:01:36.4]}
19... Qg8 {[%clk 0:01:20.8]} 20. Re1 {[%clk 0:01:20.5]} 20... Rf8 {[%clk
0:01:16.6]} 21. Bxe6 {[%clk 0:01:08.2]} 21... Qxe6 {[%clk 0:01:17.2]} 22. f4
{[%clk 0:01:10.1]} 22... Qh3 {[%clk 0:00:29.4]} 23. fxe5 {[%clk 0:01:02.7]}
23... Bxe5 {[%clk 0:00:31.3]} 24. Rxe5 {[%clk 0:00:51.5]} 24... dxe5 {[%clk
0:00:25]} 25. Qe2 {[%clk 0:00:52.8]} 25... Rf5 {[%clk 0:00:15.1]} 26. Bd2 {[%clk
0:00:44.5]} 26... h5 {[%clk 0:00:14]} 27. Rf1 {[%clk 0:00:39.6]} 27... Rxf1+
{[%clk 0:00:07.1]} 28. Qxf1 {[%clk 0:00:41.5]} 1-0